[Event "*** Titled Tuesday Blitz"]
[Site "Chess.com"]
[Date "2021.04.06"]
[Round "4"]
[White "Chesswizard_2007"]
[Black "MasterKroket"]
[Result "1-0"]
[WhiteElo "2698"]
[BlackElo "2515"]
[TimeControl "180+1"]
[EndTime "10:43:36 PDT"]
[Termination "Chesswizard_2007 won by checkmate"]

1. d4 {[%clk 0:02:58.4]} 1... Nf6 {[%clk 0:03:00.1]} 2. c4 {[%clk 0:02:49.2]}
2... e6 {[%clk 0:03:00.4]} 3. Bd2 {[%clk 0:02:47.8]} 3... c5 {[%clk 0:02:55.3]}
4. e3 {[%clk 0:02:46.9]} 4... b6 {[%clk 0:02:48.5]} 5. Nf3 {[%clk 0:02:46.2]}
5... Bb7 {[%clk 0:02:48.6]} 6. Nc3 {[%clk 0:02:45.1]} 6... cxd4 {[%clk
0:02:46.9]} 7. exd4 {[%clk 0:02:46]} 7... d5 {[%clk 0:02:47.5]} 8. cxd5 {[%clk
0:02:43.7]} 8... Nxd5 {[%clk 0:02:47.7]} 9. Bb5+ {[%clk 0:02:41.5]} 9... Bc6
{[%clk 0:02:47.5]} 10. Bd3 {[%clk 0:02:40.9]} 10... Nd7 {[%clk 0:02:39.8]} 11.
h4 {[%clk 0:02:38.1]} 11... Be7 {[%clk 0:02:35.4]} 12. Qe2 {[%clk 0:02:35.4]}
12... Nb4 {[%clk 0:02:23.6]} 13. Bb1 {[%clk 0:02:32.3]} 13... Nf6 {[%clk
0:02:16.5]} 14. a3 {[%clk 0:02:29.9]} 14... Nbd5 {[%clk 0:02:15.2]} 15. Ne5
{[%clk 0:02:24]} 15... Nxc3 {[%clk 0:02:15.3]} 16. bxc3 {[%clk 0:02:21.4]} 16...
Bxg2 {[%clk 0:02:15.4]} 17. Rg1 {[%clk 0:02:18.9]} 17... Qd5 {[%clk 0:02:02]}
18. Ba2 {[%clk 0:02:09]} 18... Qe4 {[%clk 0:01:58.7]} 19. Qxe4 {[%clk
0:02:08.3]} 19... Bxe4 {[%clk 0:01:58.3]} 20. Rxg7 {[%clk 0:02:09.2]} 20... Bg6
{[%clk 0:01:55]} 21. Bh6 {[%clk 0:01:41.6]} 21... Bf8 {[%clk 0:01:49.2]} 22. Bc4
{[%clk 0:01:36.9]} 22... a6 {[%clk 0:01:40.3]} 23. a4 {[%clk 0:01:14.6]} 23...
Nd7 {[%clk 0:01:28.5]} 24. h5 {[%clk 0:00:58]} 24... Nxe5 {[%clk 0:01:17.4]} 25.
dxe5 {[%clk 0:00:54.9]} 25... Bxg7 {[%clk 0:01:17.2]} 26. Bxg7 {[%clk
0:00:54.4]} 26... Rg8 {[%clk 0:01:17.8]} 27. h6 {[%clk 0:00:47.9]} 27... Be4
{[%clk 0:01:05.7]} 28. Ke2 {[%clk 0:00:41.6]} 28... Kd7 {[%clk 0:00:54]} 29. Ke3
{[%clk 0:00:39.4]} 29... Bf5 {[%clk 0:00:52.4]} 30. Be2 {[%clk 0:00:34.4]} 30...
Rgc8 {[%clk 0:00:49.7]} 31. c4 {[%clk 0:00:24.9]} 31... Ra7 {[%clk 0:00:43.3]}
32. Ra2 {[%clk 0:00:24]} 32... Rac7 {[%clk 0:00:42.8]} 33. Rb2 {[%clk
0:00:24.7]} 33... Kc6 {[%clk 0:00:38.7]} 34. Kd4 {[%clk 0:00:19.1]} 34... Rd7+
{[%clk 0:00:38]} 35. Kc3 {[%clk 0:00:19.2]} 35... Rcd8 {[%clk 0:00:37]} 36. Bf6
{[%clk 0:00:11.5]} 36... Rg8 {[%clk 0:00:21.9]} 37. a5 {[%clk 0:00:09]} 37...
bxa5 {[%clk 0:00:20.6]} 38. Ra2 {[%clk 0:00:09.5]} 38... Kb6 {[%clk 0:00:18.9]}
39. Rb2+ {[%clk 0:00:09.5]} 39... Kc7 {[%clk 0:00:15.6]} 40. Ra2 {[%clk
0:00:09.3]} 40... Rg2 {[%clk 0:00:15.1]} 41. Bf3 {[%clk 0:00:09.5]} 41... Rxf2
{[%clk 0:00:14.7]} 42. Rxf2 {[%clk 0:00:09.2]} 42... Rd3+ {[%clk 0:00:14]} 43.
Kb2 {[%clk 0:00:07.9]} 43... Kb6 {[%clk 0:00:13.9]} 44. Bh5 {[%clk 0:00:07.3]}
44... Bg6 {[%clk 0:00:13.2]} 45. Bxg6 {[%clk 0:00:07.6]} 45... hxg6 {[%clk
0:00:13.8]} 46. Bg7 {[%clk 0:00:07.6]} 46... Rh3 {[%clk 0:00:13.8]} 47. Rxf7
{[%clk 0:00:07.1]} 47... Kc5 {[%clk 0:00:14.3]} 48. Rc7+ {[%clk 0:00:06.6]}
48... Kb4 {[%clk 0:00:14.8]} 49. Rb7+ {[%clk 0:00:06.7]} 49... Kxc4 {[%clk
0:00:14.6]} 50. Rb6 {[%clk 0:00:06.9]} 50... a4 {[%clk 0:00:13.6]} 51. Rxa6
{[%clk 0:00:06.9]} 51... Kb4 {[%clk 0:00:14]} 52. Rb6+ {[%clk 0:00:06.7]} 52...
Kc4 {[%clk 0:00:14.4]} 53. Rb8 {[%clk 0:00:07.3]} 53... a3+ {[%clk 0:00:13.1]}
54. Ka2 {[%clk 0:00:06.7]} 54... g5 {[%clk 0:00:13.6]} 55. Ra8 {[%clk
0:00:06.6]} 55... g4 {[%clk 0:00:12.7]} 56. Rxa3 {[%clk 0:00:06.3]} 56... g3
{[%clk 0:00:12.8]} 57. Rxg3 {[%clk 0:00:05.6]} 57... Rxg3 {[%clk 0:00:10.3]} 58.
h7 {[%clk 0:00:06.2]} 58... Rxg7 {[%clk 0:00:11.1]} 59. h8=Q {[%clk 0:00:06.8]}
59... Rg2+ {[%clk 0:00:11]} 60. Ka3 {[%clk 0:00:07]} 60... Rg3+ {[%clk
0:00:11.1]} 61. Ka4 {[%clk 0:00:06.1]} 61... Kd5 {[%clk 0:00:11.7]} 62. Qd8+
{[%clk 0:00:05.5]} 62... Ke4 {[%clk 0:00:11.9]} 63. Qd6 {[%clk 0:00:05]} 63...
Kf5 {[%clk 0:00:12]} 64. Qf8+ {[%clk 0:00:04.6]} 64... Ke4 {[%clk 0:00:11.4]}
65. Kb4 {[%clk 0:00:05.3]} 65... Rg5 {[%clk 0:00:09.8]} 66. Qa8+ {[%clk
0:00:04.6]} 66... Kf4 {[%clk 0:00:09.4]} 67. Kc4 {[%clk 0:00:05.5]} 67... Rxe5
{[%clk 0:00:09.1]} 68. Qb8 {[%clk 0:00:05.4]} 68... Kf5 {[%clk 0:00:09.5]} 69.
Kd4 {[%clk 0:00:05.1]} 69... Rd5+ {[%clk 0:00:10]} 70. Ke3 {[%clk 0:00:05.1]}
70... Kf6 {[%clk 0:00:10.5]} 71. Ke4 {[%clk 0:00:05.2]} 71... Ke7 {[%clk
0:00:10.6]} 72. Qb7+ {[%clk 0:00:05.1]} 72... Kf6 {[%clk 0:00:10.9]} 73. Qc8
{[%clk 0:00:05.7]} 73... Ke7 {[%clk 0:00:11.1]} 74. Qc7+ {[%clk 0:00:05.6]}
74... Rd7 {[%clk 0:00:10.7]} 75. Qg3 {[%clk 0:00:05]} 75... Rd5 {[%clk
0:00:10.3]} 76. Qc7+ {[%clk 0:00:04]} 76... Kf6 {[%clk 0:00:10.6]} 77. Qc3+
{[%clk 0:00:04.2]} 77... Ke7 {[%clk 0:00:10.7]} 78. Qg7+ {[%clk 0:00:04.8]}
78... Kd6 {[%clk 0:00:11.4]} 79. Kf4 {[%clk 0:00:04.8]} 79... Rf5+ {[%clk
0:00:11.2]} 80. Ke4 {[%clk 0:00:04.9]} 80... Rd5 {[%clk 0:00:11.9]} 81. Qh8
{[%clk 0:00:05]} 81... Rf5 {[%clk 0:00:11.7]} 82. Qd8+ {[%clk 0:00:04.9]} 82...
Kc6 {[%clk 0:00:11.7]} 83. Qd1 {[%clk 0:00:05]} 83... Rd5 {[%clk 0:00:11.5]} 84.
Qa4+ {[%clk 0:00:05.6]} 84... Kd6 {[%clk 0:00:11.9]} 85. Qa6+ {[%clk 0:00:06.3]}
85... Ke7 {[%clk 0:00:12.5]} 86. Qc6 {[%clk 0:00:06.7]} 86... Rf5 {[%clk
0:00:11.8]} 87. Qc7+ {[%clk 0:00:06.5]} 87... Kf6 {[%clk 0:00:12.2]} 88. Qd7
{[%clk 0:00:06.7]} 88... Rd5 {[%clk 0:00:12.4]} 89. Qe8 {[%clk 0:00:07.3]} 89...
Rf5 {[%clk 0:00:12]} 90. Qf8+ {[%clk 0:00:07.5]} 90... Kg6 {[%clk 0:00:12.4]}
91. Qe7 {[%clk 0:00:08]} 91... Rf6 {[%clk 0:00:09.5]} 92. Ke5 {[%clk 0:00:07.7]}
92... Rf2 {[%clk 0:00:06.7]} 93. Qxe6+ {[%clk 0:00:06.5]} 93... Kg5 {[%clk
0:00:07.3]} 94. Qe7+ {[%clk 0:00:06]} 94... Kg4 {[%clk 0:00:07.4]} 95. Qg7+
{[%clk 0:00:06.1]} 95... Kf3 {[%clk 0:00:07.8]} 96. Kd4 {[%clk 0:00:06.6]} 96...
Rg2 {[%clk 0:00:06.7]} 97. Qf6+ {[%clk 0:00:06.3]} 97... Ke2 {[%clk 0:00:07.1]}
98. Qe6+ {[%clk 0:00:05.9]} 98... Kf2 {[%clk 0:00:07.5]} 99. Qf5+ {[%clk
0:00:04.3]} 99... Ke2 {[%clk 0:00:08]} 100. Qe4+ {[%clk 0:00:04.5]} 100... Kf2
{[%clk 0:00:08.7]} 101. Qe3+ {[%clk 0:00:04.8]} 101... Kf1 {[%clk 0:00:09.4]}
102. Qc1+ {[%clk 0:00:03.8]} 102... Kf2 {[%clk 0:00:09]} 103. Ke4 {[%clk
0:00:04.4]} 103... Rg3 {[%clk 0:00:08.3]} 104. Qd2+ {[%clk 0:00:03.1]} 104...
Kg1 {[%clk 0:00:08.9]} 105. Kf4 {[%clk 0:00:03.7]} 105... Rg2 {[%clk 0:00:08.7]}
106. Qe1+ {[%clk 0:00:04]} 106... Kh2 {[%clk 0:00:08.9]} 107. Kf3 {[%clk
0:00:04.9]} 107... Rg6 {[%clk 0:00:06.6]} 108. Qh4+ {[%clk 0:00:03.9]} 108...
Kg1 {[%clk 0:00:06.5]} 109. Qd4+ {[%clk 0:00:04.3]} 109... Kh2 {[%clk
0:00:06.5]} 110. Qd2+ {[%clk 0:00:03.2]} 110... Kh3 {[%clk 0:00:06.5]} 111. Qd7+
{[%clk 0:00:03.3]} 111... Kh4 {[%clk 0:00:06]} 112. Qf7 {[%clk 0:00:03.3]}
112... Rg5 {[%clk 0:00:05.1]} 113. Qf6 {[%clk 0:00:02.9]} 113... Kh5 {[%clk
0:00:05.7]} 114. Kf4 {[%clk 0:00:02.8]} 114... Rg4+ {[%clk 0:00:05.5]} 115. Kf3
{[%clk 0:00:03.4]} 115... Rg5 {[%clk 0:00:05]} 116. Qh8+ {[%clk 0:00:03.8]}
116... Kg6 {[%clk 0:00:05.1]} 117. Kf4 {[%clk 0:00:04.7]} 117... Rf5+ {[%clk
0:00:05.4]} 118. Ke4 {[%clk 0:00:05.4]} 118... Rg5 {[%clk 0:00:05.5]} 119. Qe8+
{[%clk 0:00:06]} 119... Kf6 {[%clk 0:00:05.3]} 120. Qd7 {[%clk 0:00:06]} 120...
Kg6 {[%clk 0:00:05.5]} 121. Kf4 {[%clk 0:00:06.2]} 121... Kh5 {[%clk 0:00:05]}
122. Qh7# {[%clk 0:00:06]} 1-0

[Event "*** Titled Tuesday Blitz"]
[Site "Chess.com"]
[Date "2021.04.06"]
[Round "4"]
[White "EvgenyT"]
[Black "alexrustemov"]
[Result "1/2-1/2"]
[WhiteElo "2925"]
[BlackElo "2669"]
[TimeControl "180+1"]
[EndTime "10:44:15 PDT"]
[Termination "Game drawn by 50-move rule"]

1. d4 {[%clk 0:03:00.9]} 1... d5 {[%clk 0:03:00]} 2. Nf3 {[%clk 0:03:00.3]} 2...
Nf6 {[%clk 0:02:59.6]} 3. c4 {[%clk 0:03:00.2]} 3... c6 {[%clk 0:02:56.6]} 4. g3
{[%clk 0:02:58]} 4... Bf5 {[%clk 0:02:39.6]} 5. Nc3 {[%clk 0:02:55.8]} 5... e6
{[%clk 0:02:39.3]} 6. Nh4 {[%clk 0:02:55.2]} 6... Bg6 {[%clk 0:02:33.3]} 7. Qb3
{[%clk 0:02:51.4]} 7... Qb6 {[%clk 0:02:27.3]} 8. Nxg6 {[%clk 0:02:48.4]} 8...
hxg6 {[%clk 0:02:27]} 9. c5 {[%clk 0:02:49]} 9... Qxb3 {[%clk 0:01:46.3]} 10.
axb3 {[%clk 0:02:48.2]} 10... Nbd7 {[%clk 0:01:46.6]} 11. b4 {[%clk 0:02:45.8]}
11... a6 {[%clk 0:01:27.1]} 12. b5 {[%clk 0:02:41.8]} 12... cxb5 {[%clk
0:01:26.3]} 13. Nxb5 {[%clk 0:02:41.8]} 13... Rc8 {[%clk 0:01:25.8]} 14. Nc3
{[%clk 0:02:40.7]} 14... b6 {[%clk 0:01:17.8]} 15. cxb6 {[%clk 0:02:36.7]} 15...
Bb4 {[%clk 0:01:06.2]} 16. Rxa6 {[%clk 0:02:03.7]} 16... Ne4 {[%clk 0:01:02.5]}
17. Bd2 {[%clk 0:02:02.6]} 17... O-O {[%clk 0:00:41.8]} 18. e3 {[%clk
0:01:54.2]} 18... Nxd2 {[%clk 0:00:30.8]} 19. Kxd2 {[%clk 0:01:53.3]} 19... Rb8
{[%clk 0:00:31.1]} 20. Bd3 {[%clk 0:01:47.8]} 20... Nxb6 {[%clk 0:00:30.9]} 21.
Rc1 {[%clk 0:01:44.8]} 21... Rb7 {[%clk 0:00:29.8]} 22. Ke2 {[%clk 0:01:43.4]}
22... Rfb8 {[%clk 0:00:29.5]} 23. Kf3 {[%clk 0:01:23.3]} 23... Nc8 {[%clk
0:00:23.4]} 24. Na4 {[%clk 0:01:01.9]} 24... Bf8 {[%clk 0:00:22]} 25. h4 {[%clk
0:00:51.8]} 25... Nd6 {[%clk 0:00:21.4]} 26. Rcc6 {[%clk 0:00:50.1]} 26... Rb3
{[%clk 0:00:20.4]} 27. Bc2 {[%clk 0:00:49.1]} 27... R3b4 {[%clk 0:00:13.9]} 28.
Rxd6 {[%clk 0:00:45.5]} 28... Bxd6 {[%clk 0:00:14.3]} 29. Rxd6 {[%clk
0:00:45.8]} 29... Rc4 {[%clk 0:00:14.6]} 30. Bd1 {[%clk 0:00:41.6]} 30... Rc1
{[%clk 0:00:14.4]} 31. Ke2 {[%clk 0:00:41.4]} 31... Rb4 {[%clk 0:00:11.3]} 32.
Rb6 {[%clk 0:00:37.4]} 32... Rbc4 {[%clk 0:00:08.3]} 33. Rb8+ {[%clk 0:00:36.5]}
33... Kh7 {[%clk 0:00:08.1]} 34. Nc3 {[%clk 0:00:35.4]} 34... Ra1 {[%clk
0:00:08]} 35. Rb7 {[%clk 0:00:34.2]} 35... Kg8 {[%clk 0:00:07.7]} 36. Bc2 {[%clk
0:00:32.5]} 36... Rc8 {[%clk 0:00:07.4]} 37. Bd3 {[%clk 0:00:31.9]} 37... Rca8
{[%clk 0:00:07.5]} 38. Nb5 {[%clk 0:00:26.7]} 38... Kf8 {[%clk 0:00:07.5]} 39.
Nd6 {[%clk 0:00:26.3]} 39... R1a7 {[%clk 0:00:07.5]} 40. Rxa7 {[%clk 0:00:20.5]}
40... Rxa7 {[%clk 0:00:08.4]} 41. b4 {[%clk 0:00:20.5]} 41... Ra2+ {[%clk
0:00:07.9]} 42. Kf3 {[%clk 0:00:20.3]} 42... Rb2 {[%clk 0:00:08.2]} 43. b5
{[%clk 0:00:20.2]} 43... Ke7 {[%clk 0:00:08.8]} 44. Nb7 {[%clk 0:00:19.5]} 44...
Rb3 {[%clk 0:00:07.9]} 45. Be2 {[%clk 0:00:18.8]} 45... Rb2 {[%clk 0:00:07.7]}
46. Na5 {[%clk 0:00:17.7]} 46... Kd6 {[%clk 0:00:07.2]} 47. Nb7+ {[%clk
0:00:17.2]} 47... Kc7 {[%clk 0:00:07.2]} 48. Nc5 {[%clk 0:00:17.1]} 48... Kd6
{[%clk 0:00:06.6]} 49. Bf1 {[%clk 0:00:16.2]} 49... Kc7 {[%clk 0:00:05.3]} 50.
Kg2 {[%clk 0:00:15.6]} 50... Kd6 {[%clk 0:00:05.3]} 51. Nb7+ {[%clk 0:00:13.9]}
51... Kc7 {[%clk 0:00:05.5]} 52. Na5 {[%clk 0:00:14.3]} 52... Kd6 {[%clk
0:00:05.2]} 53. Nc6 {[%clk 0:00:14.4]} 53... f6 {[%clk 0:00:04.1]} 54. Nd8
{[%clk 0:00:14]} 54... e5 {[%clk 0:00:03.5]} 55. dxe5+ {[%clk 0:00:12.7]} 55...
fxe5 {[%clk 0:00:04.4]} 56. Nf7+ {[%clk 0:00:12.4]} 56... Ke6 {[%clk 0:00:04.4]}
57. Ng5+ {[%clk 0:00:12.6]} 57... Kd6 {[%clk 0:00:05.1]} 58. Bd3 {[%clk
0:00:12.1]} 58... e4 {[%clk 0:00:03.9]} 59. Bf1 {[%clk 0:00:11.8]} 59... Rb1
{[%clk 0:00:04.4]} 60. Nh3 {[%clk 0:00:09.9]} 60... Ke5 {[%clk 0:00:03.8]} 61.
Nf4 {[%clk 0:00:09.9]} 61... d4 {[%clk 0:00:04.5]} 62. exd4+ {[%clk 0:00:09.6]}
62... Kxd4 {[%clk 0:00:05.4]} 63. Nxg6 {[%clk 0:00:08.9]} 63... Rb2 {[%clk
0:00:06]} 64. Kg1 {[%clk 0:00:09]} 64... e3 {[%clk 0:00:04.7]} 65. fxe3+ {[%clk
0:00:08.9]} 65... Kxe3 {[%clk 0:00:05.6]} 66. Ne5 {[%clk 0:00:09.1]} 66... Ke4
{[%clk 0:00:05.3]} 67. Nd3 {[%clk 0:00:07.4]} 67... Rb1 {[%clk 0:00:04.5]} 68.
Kf2 {[%clk 0:00:06.5]} 68... Ra1 {[%clk 0:00:02.6]} 69. Be2 {[%clk 0:00:05.6]}
69... Ra2 {[%clk 0:00:03.1]} 70. Nf4 {[%clk 0:00:05.7]} 70... Rb2 {[%clk
0:00:02.9]} 71. Ne6 {[%clk 0:00:05.6]} 71... g6 {[%clk 0:00:01.8]} 72. Nf4
{[%clk 0:00:05.7]} 72... Kf5 {[%clk 0:00:02.6]} 73. Kf3 {[%clk 0:00:05.6]} 73...
g5 {[%clk 0:00:03.5]} 74. Bd3+ {[%clk 0:00:05.3]} 74... Kf6 {[%clk 0:00:03.3]}
75. hxg5+ {[%clk 0:00:06.2]} 75... Kxg5 {[%clk 0:00:03.6]} 76. Ne6+ {[%clk
0:00:06.4]} 76... Kf6 {[%clk 0:00:03.6]} 77. Nc5 {[%clk 0:00:07.3]} 77... Rb4
{[%clk 0:00:02.5]} 78. Ke3 {[%clk 0:00:07.1]} 78... Ke5 {[%clk 0:00:02.8]} 79.
Ne4 {[%clk 0:00:07.1]} 79... Kd5 {[%clk 0:00:02.7]} 80. g4 {[%clk 0:00:07]}
80... Rb2 {[%clk 0:00:03]} 81. g5 {[%clk 0:00:06.9]} 81... Rg2 {[%clk
0:00:03.2]} 82. Kf4 {[%clk 0:00:06.3]} 82... Kd4 {[%clk 0:00:03.2]} 83. Bf1
{[%clk 0:00:05.9]} 83... Rg1 {[%clk 0:00:03.4]} 84. Be2 {[%clk 0:00:06.1]} 84...
Re1 {[%clk 0:00:03.3]} 85. Bf3 {[%clk 0:00:05.7]} 85... Rb1 {[%clk 0:00:03]} 86.
Nd6 {[%clk 0:00:05]} 86... Kc5 {[%clk 0:00:03.2]} 87. Nf7 {[%clk 0:00:04.8]}
87... Rxb5 {[%clk 0:00:03.2]} 88. g6 {[%clk 0:00:05]} 88... Rb6 {[%clk
0:00:02.4]} 89. Kg5 {[%clk 0:00:04.8]} 89... Rxg6+ {[%clk 0:00:02.7]} 90. Kxg6
{[%clk 0:00:04.9]} 90... Kd4 {[%clk 0:00:03.6]} 91. Ng5 {[%clk 0:00:05.1]} 91...
Ke3 {[%clk 0:00:04.5]} 92. Kf5 {[%clk 0:00:05.2]} 92... Kd3 {[%clk 0:00:04.8]}
93. Kf4 {[%clk 0:00:05.1]} 93... Kd4 {[%clk 0:00:04.9]} 94. Be4 {[%clk
0:00:05.4]} 94... Kc5 {[%clk 0:00:04.3]} 95. Ke5 {[%clk 0:00:05.7]} 95... Kc4
{[%clk 0:00:04.6]} 96. Ne6 {[%clk 0:00:05.8]} 96... Kc3 {[%clk 0:00:05]} 97. Kd5
{[%clk 0:00:05.7]} 97... Kd2 {[%clk 0:00:05]} 98. Kd4 {[%clk 0:00:05.7]} 98...
Kc1 {[%clk 0:00:05.6]} 99. Nf4 {[%clk 0:00:05.7]} 99... Kb2 {[%clk 0:00:05.6]}
100. Kd3 {[%clk 0:00:05.4]} 100... Kb3 {[%clk 0:00:06.5]} 101. Nd5 {[%clk
0:00:04.5]} 101... Kb2 {[%clk 0:00:07.4]} 102. Kc4 {[%clk 0:00:04.5]} 102... Ka3
{[%clk 0:00:06.2]} 103. Kc3 {[%clk 0:00:04.4]} 103... Ka2 {[%clk 0:00:06.4]}
104. Bd3 {[%clk 0:00:04.7]} 104... Ka3 {[%clk 0:00:07.3]} 105. Bc4 {[%clk
0:00:04.4]} 105... Ka4 {[%clk 0:00:07.3]} 106. Nf6 {[%clk 0:00:04.1]} 106... Ka3
{[%clk 0:00:08.2]} 107. Nd7 {[%clk 0:00:04.3]} 107... Ka4 {[%clk 0:00:08.6]}
108. Ne5 {[%clk 0:00:03.4]} 108... Ka3 {[%clk 0:00:08.6]} 109. Bb5 {[%clk
0:00:03.1]} 109... Ka2 {[%clk 0:00:08.4]} 110. Nc4 {[%clk 0:00:03.2]} 110... Ka1
{[%clk 0:00:08.5]} 111. Ba4 {[%clk 0:00:03.3]} 111... Ka2 {[%clk 0:00:08.6]}
112. Kd2 {[%clk 0:00:02.8]} 112... Ka1 {[%clk 0:00:07.9]} 113. Kc2 {[%clk
0:00:02.8]} 113... Ka2 {[%clk 0:00:08]} 114. Bb3+ {[%clk 0:00:02]} 114... Ka1
{[%clk 0:00:08]} 115. Kc3 {[%clk 0:00:02.3]} 115... Kb1 {[%clk 0:00:07.2]} 116.
Ne5 {[%clk 0:00:01.8]} 116... Ka1 {[%clk 0:00:07.6]} 117. Nf3 {[%clk 0:00:01.3]}
117... Kb1 {[%clk 0:00:08]} 118. Nd4 {[%clk 0:00:01.7]} 118... Ka1 {[%clk
0:00:08.1]} 119. Bc4 {[%clk 0:00:01.6]} 119... Kb1 {[%clk 0:00:08.2]} 120. Nc2
{[%clk 0:00:02.5]} 120... Kc1 {[%clk 0:00:07.8]} 121. Ba2 {[%clk 0:00:03.4]}
121... Kd1 {[%clk 0:00:07.8]} 122. Nd4 {[%clk 0:00:03.7]} 122... Kc1 {[%clk
0:00:08.6]} 123. Kd3 {[%clk 0:00:03.1]} 123... Kb2 {[%clk 0:00:08.5]} 124. Bd5
{[%clk 0:00:02.9]} 124... Ka1 {[%clk 0:00:09.4]} 125. Kc3 {[%clk 0:00:02.5]}
125... Kb1 {[%clk 0:00:09.5]} 126. Nc2 {[%clk 0:00:03.4]} 126... Kc1 {[%clk
0:00:08.7]} 127. Ba2 {[%clk 0:00:03.6]} 127... Kd1 {[%clk 0:00:08.8]} 128. Nd4
{[%clk 0:00:03.4]} 128... Kc1 {[%clk 0:00:09.1]} 129. Ne2+ {[%clk 0:00:02.6]}
129... Kd1 {[%clk 0:00:09.3]} 130. Kd3 {[%clk 0:00:02.9]} 130... Ke1 {[%clk
0:00:09.2]} 131. Ke3 {[%clk 0:00:02.7]} 131... Kd1 {[%clk 0:00:09.4]} 132. Bb3+
{[%clk 0:00:03.6]} 132... Ke1 {[%clk 0:00:09.6]} 133. Nf4 {[%clk 0:00:02.4]}
133... Kf1 {[%clk 0:00:09.4]} 134. Kf3 {[%clk 0:00:02.1]} 134... Ke1 {[%clk
0:00:09.5]} 135. Ke3 {[%clk 0:00:02.2]} 135... Kf1 {[%clk 0:00:10.2]} 136. Bc2
{[%clk 0:00:02.1]} 136... Ke1 {[%clk 0:00:10.5]} 137. Ng2+ {[%clk 0:00:02.2]}
137... Kf1 {[%clk 0:00:10.7]} 138. Kf3 {[%clk 0:00:03.1]} 138... Kg1 {[%clk
0:00:10.5]} 139. Kg3 {[%clk 0:00:02.8]} 139... Kf1 {[%clk 0:00:11.4]} 140. Bd3+
{[%clk 0:00:03.6]} 1/2-1/2

[Event "*** Titled Tuesday Blitz"]
[Site "Chess.com"]
[Date "2021.04.06"]
[Round "5"]
[White "Maddie"]
[Black "ChessAdvanceUSA"]
[Result "1/2-1/2"]
[WhiteElo "2068"]
[BlackElo "2297"]
[TimeControl "180+1"]
[EndTime "10:51:22 PDT"]
[Termination "Game drawn by agreement"]

1. d4 {[%clk 0:03:00.7]} 1... Nc6 {[%clk 0:03:00.9]} 2. e3 {[%clk 0:03:00.3]}
2... g6 {[%clk 0:03:00.9]} 3. Bd3 {[%clk 0:03:01.2]} 3... Bg7 {[%clk 0:03:01.1]}
4. f4 {[%clk 0:03:02.1]} 4... d6 {[%clk 0:03:00.6]} 5. Nf3 {[%clk 0:03:03]} 5...
Nf6 {[%clk 0:03:00.5]} 6. O-O {[%clk 0:03:03.5]} 6... O-O {[%clk 0:03:00.4]} 7.
c3 {[%clk 0:03:04.1]} 7... e5 {[%clk 0:02:59.9]} 8. Nbd2 {[%clk 0:03:05]} 8...
exf4 {[%clk 0:02:51.6]} 9. exf4 {[%clk 0:03:04.5]} 9... Nd5 {[%clk 0:02:48.7]}
10. Ne4 {[%clk 0:02:58.9]} 10... Re8 {[%clk 0:02:47.1]} 11. Re1 {[%clk
0:02:57.1]} 11... Bg4 {[%clk 0:02:42.3]} 12. Bc4 {[%clk 0:02:56.1]} 12... Nb6
{[%clk 0:02:41.1]} 1/2-1/2

[Event "*** Titled Tuesday Blitz"]
[Site "Chess.com"]
[Date "2021.04.06"]
[Round "5"]
[White "IwkooO"]
[Black "DrVelja"]
[Result "0-1"]
[WhiteElo "2603"]
[BlackElo "2868"]
[TimeControl "180+1"]
[EndTime "10:53:44 PDT"]
[Termination "DrVelja won by resignation"]

1. e4 {[%clk 0:03:00.9]} 1... c6 {[%clk 0:03:00.6]} 2. d4 {[%clk 0:03:00.9]}
2... d5 {[%clk 0:03:01.5]} 3. e5 {[%clk 0:03:00.9]} 3... Bf5 {[%clk 0:03:01.1]}
4. Nd2 {[%clk 0:03:00.7]} 4... e6 {[%clk 0:03:00.3]} 5. Nb3 {[%clk 0:03:01.1]}
5... Nd7 {[%clk 0:02:58.8]} 6. Nf3 {[%clk 0:03:01.6]} 6... a6 {[%clk 0:02:59.1]}
7. Be2 {[%clk 0:03:00.3]} 7... c5 {[%clk 0:02:59.4]} 8. c3 {[%clk 0:03:00.4]}
8... h6 {[%clk 0:02:57.6]} 9. O-O {[%clk 0:02:57.4]} 9... c4 {[%clk 0:02:56.7]}
10. Nbd2 {[%clk 0:02:57.1]} 10... Ne7 {[%clk 0:02:56.5]} 11. Re1 {[%clk
0:02:57.6]} 11... Nc6 {[%clk 0:02:55.9]} 12. Nf1 {[%clk 0:02:58]} 12... b5
{[%clk 0:02:53.1]} 13. h3 {[%clk 0:02:55.6]} 13... b4 {[%clk 0:02:48.7]} 14.
N3h2 {[%clk 0:02:53]} 14... Qa5 {[%clk 0:02:30.1]} 15. Bd2 {[%clk 0:02:46.8]}
15... Rb8 {[%clk 0:02:29.5]} 16. f4 {[%clk 0:02:45.4]} 16... Be7 {[%clk
0:02:28.1]} 17. Ne3 {[%clk 0:02:44.6]} 17... Be4 {[%clk 0:02:20.7]} 18. Bf3
{[%clk 0:02:42.6]} 18... Bd3 {[%clk 0:02:18]} 19. Nhg4 {[%clk 0:02:29]} 19...
bxc3 {[%clk 0:02:07.5]} 20. bxc3 {[%clk 0:02:27.6]} 20... Bh4 {[%clk 0:01:53.7]}
21. Nf2 {[%clk 0:02:24.9]} 21... Bxf2+ {[%clk 0:01:53.3]} 22. Kxf2 {[%clk
0:02:24.9]} 22... O-O {[%clk 0:01:51.7]} 23. Be2 {[%clk 0:02:23.4]} 23... Bxe2
{[%clk 0:01:41.5]} 24. Qxe2 {[%clk 0:02:24.3]} 24... Rb2 {[%clk 0:01:41.8]} 25.
f5 {[%clk 0:02:14.3]} 25... Nxd4 {[%clk 0:01:38.6]} 0-1

[Event "*** Titled Tuesday Blitz"]
[Site "Chess.com"]
[Date "2021.04.06"]
[Round "5"]
[White "powermove"]
[Black "Rodchenkov_Vitalij"]
[Result "1-0"]
[WhiteElo "1673"]
[BlackElo "2156"]
[TimeControl "180+1"]
[EndTime "10:53:47 PDT"]
[Termination "powermove won by resignation"]

1. e4 {[%clk 0:03:00.9]} 1... c6 {[%clk 0:02:59.4]} 2. d4 {[%clk 0:02:59.3]}
2... d5 {[%clk 0:02:59.7]} 3. e5 {[%clk 0:02:57.5]} 3... Bf5 {[%clk 0:02:58.8]}
4. Nf3 {[%clk 0:02:57.2]} 4... e6 {[%clk 0:02:56.3]} 5. Be2 {[%clk 0:02:56.8]}
5... Ne7 {[%clk 0:02:55.7]} 6. O-O {[%clk 0:02:55.8]} 6... c5 {[%clk 0:02:56.1]}
7. c4 {[%clk 0:02:51.1]} 7... Nec6 {[%clk 0:02:51.2]} 8. cxd5 {[%clk 0:02:43]}
8... Qxd5 {[%clk 0:02:48.1]} 9. Nc3 {[%clk 0:02:42]} 9... Qd8 {[%clk 0:02:46.9]}
10. dxc5 {[%clk 0:02:38.3]} 10... Bxc5 {[%clk 0:02:37.7]} 11. Qxd8+ {[%clk
0:02:29.3]} 11... Nxd8 {[%clk 0:02:34.1]} 12. Nb5 {[%clk 0:02:24.8]} 12... Na6
{[%clk 0:02:25.9]} 13. Bg5 {[%clk 0:02:09.7]} 13... O-O {[%clk 0:02:23.3]} 14.
Rac1 {[%clk 0:02:03.7]} 14... Nc6 {[%clk 0:02:22]} 15. a3 {[%clk 0:01:58]} 15...
Bb6 {[%clk 0:02:17.6]} 16. Nd6 {[%clk 0:01:51.7]} 16... Nc7 {[%clk 0:01:59]} 17.
Nxb7 {[%clk 0:01:38.2]} 17... Nd5 {[%clk 0:01:57.2]} 18. Rxc6 {[%clk 0:01:36]}
1-0